[Event "*** Titled Tuesday Blitz"]
[Site "Chess.com"]
[Date "2020.04.07"]
[Round "2"]
[White "ClockworkKubrick"]
[Black "rubhani"]
[Result "0-1"]
[WhiteElo "2209"]
[BlackElo "2464"]
[TimeControl "180+1"]
[EndTime "13:20:22 PDT"]
[Termination "rubhani won by resignation"]

1. e4 {[%clk 0:03:00.9]} 1... c5 {[%clk 0:02:57.5]} 2. Nf3 {[%clk 0:03:00.8]}
2... d6 {[%clk 0:02:55.5]} 3. Nc3 {[%clk 0:03:01]} 3... Nf6 {[%clk 0:02:55.1]}
4. Bb5+ {[%clk 0:02:59.9]} 4... Bd7 {[%clk 0:02:53.6]} 5. O-O {[%clk 0:03:00.4]}
5... Bxb5 {[%clk 0:02:49.8]} 6. Nxb5 {[%clk 0:03:01.3]} 6... Nc6 {[%clk
0:02:42.4]} 7. d3 {[%clk 0:02:59.2]} 7... e6 {[%clk 0:02:41.9]} 8. h3 {[%clk
0:02:58.8]} 8... Be7 {[%clk 0:02:42.5]} 9. Be3 {[%clk 0:02:54]} 9... O-O {[%clk
0:02:42.4]} 10. Qd2 {[%clk 0:02:53.1]} 10... a6 {[%clk 0:02:41.5]} 11. Nc3
{[%clk 0:02:52.6]} 11... b5 {[%clk 0:02:42.3]} 12. Rae1 {[%clk 0:02:51.8]} 12...
Qc7 {[%clk 0:02:35.7]} 13. Nh2 {[%clk 0:02:51.5]} 13... d5 {[%clk 0:02:29.8]}
14. exd5 {[%clk 0:02:51.6]} 14... exd5 {[%clk 0:02:29.8]} 15. Bf4 {[%clk
0:02:49.8]} 15... Qd7 {[%clk 0:02:29.8]} 16. Bg5 {[%clk 0:02:47.1]} 16... d4
{[%clk 0:02:24.6]} 17. Ne4 {[%clk 0:02:45.7]} 17... Nxe4 {[%clk 0:02:21.2]} 18.
Rxe4 {[%clk 0:02:45.6]} 18... Bd6 {[%clk 0:02:13.1]} 19. Rfe1 {[%clk 0:02:42.5]}
19... f5 {[%clk 0:01:53.9]} 20. R4e2 {[%clk 0:02:38.5]} 20... Qc7 {[%clk
0:01:39.6]} 21. Nf3 {[%clk 0:02:27.2]} 21... h6 {[%clk 0:01:38.1]} 22. Bh4
{[%clk 0:02:20.9]} 22... Bf4 {[%clk 0:01:32.5]} 23. Qd1 {[%clk 0:02:20.2]} 23...
g5 {[%clk 0:01:31.6]} 24. Bg3 {[%clk 0:02:18.8]} 24... Bxg3 {[%clk 0:01:27.4]}
25. fxg3 {[%clk 0:02:18.9]} 25... Rf6 {[%clk 0:01:23.2]} 26. Ne5 {[%clk
0:02:10.6]} 26... Nxe5 {[%clk 0:01:09.9]} 27. Rxe5 {[%clk 0:02:09.9]} 27... Raf8
{[%clk 0:01:09.9]} 28. Qh5 {[%clk 0:02:00.7]} 28... R8f7 {[%clk 0:01:00.4]} 29.
Kh2 {[%clk 0:01:48.5]} 29... c4 {[%clk 0:00:55.2]} 30. Re8+ {[%clk 0:01:43.4]}
30... Kg7 {[%clk 0:00:55.1]} 31. Ra8 {[%clk 0:01:34.9]} 31... f4 {[%clk
0:00:53.8]} 32. gxf4 {[%clk 0:01:16.6]} 32... Qxf4+ {[%clk 0:00:52.9]} 33. Kh1
{[%clk 0:01:11.7]} 33... Qg3 {[%clk 0:00:47.7]} 34. Qd1 {[%clk 0:01:00]} 34...
Rf2 {[%clk 0:00:35.7]} 35. Rg1 {[%clk 0:00:55.6]} 35... cxd3 {[%clk 0:00:23.8]}
36. Qxd3 {[%clk 0:00:50.4]} 36... Qxd3 {[%clk 0:00:21.5]} 37. cxd3 {[%clk
0:00:50.4]} 37... Rxb2 {[%clk 0:00:21.3]} 38. Rxa6 {[%clk 0:00:50.6]} 38... Rff2
{[%clk 0:00:21]} 39. Rd6 {[%clk 0:00:48.7]} 39... Rb4 {[%clk 0:00:19]} 40. a3
{[%clk 0:00:47.6]} 40... Rb3 {[%clk 0:00:17]} 41. Rxd4 {[%clk 0:00:46.9]} 41...
Rxa3 {[%clk 0:00:17.4]} 42. Rb4 {[%clk 0:00:46.6]} 42... Rf5 {[%clk 0:00:15.5]}
43. Rgb1 {[%clk 0:00:44]} 43... Rxd3 {[%clk 0:00:14.3]} 44. Rxb5 {[%clk
0:00:44.5]} 44... Rf2 {[%clk 0:00:14.9]} 45. R5b2 {[%clk 0:00:42]} 45... Rdd2
{[%clk 0:00:13.6]} 46. Rxd2 {[%clk 0:00:41.9]} 46... Rxd2 {[%clk 0:00:14.5]} 47.
Kg1 {[%clk 0:00:42.3]} 47... Kg6 {[%clk 0:00:14.9]} 48. Rc1 {[%clk 0:00:42.1]}
48... Kf5 {[%clk 0:00:14.7]} 49. Rb1 {[%clk 0:00:42.5]} 49... h5 {[%clk
0:00:14.8]} 50. Rc1 {[%clk 0:00:42.8]} 50... h4 {[%clk 0:00:14.8]} 51. Rb1
{[%clk 0:00:43]} 51... Rd3 {[%clk 0:00:15.3]} 52. Rc1 {[%clk 0:00:42.9]} 52...
Kf4 {[%clk 0:00:15.8]} 53. Rb1 {[%clk 0:00:43]} 53... Kg3 {[%clk 0:00:16.2]} 54.
Rc1 {[%clk 0:00:43.2]} 54... Rd2 {[%clk 0:00:16.1]} 55. Rb1 {[%clk 0:00:43]}
55... Rxg2+ {[%clk 0:00:16]} 56. Kh1 {[%clk 0:00:43.6]} 56... Rh2+ {[%clk
0:00:16.2]} 57. Kg1 {[%clk 0:00:42.1]} 57... Rxh3 {[%clk 0:00:13.7]} 58. Rb3+
{[%clk 0:00:42.3]} 58... Kg4 {[%clk 0:00:13.9]} 59. Rb4+ {[%clk 0:00:42.9]}
59... Kh5 {[%clk 0:00:14.2]} 60. Kg2 {[%clk 0:00:43.6]} 60... Rd3 {[%clk
0:00:14.3]} 61. Kh2 {[%clk 0:00:44.5]} 61... Rd2+ {[%clk 0:00:14.6]} 62. Kg1
{[%clk 0:00:44]} 62... g4 {[%clk 0:00:15]} 63. Rb5+ {[%clk 0:00:42.6]} 63... Kg6
{[%clk 0:00:15.4]} 64. Rb4 {[%clk 0:00:42.6]} 64... Kf5 {[%clk 0:00:15.6]} 65.
Kh1 {[%clk 0:00:40.1]} 65... h3 {[%clk 0:00:14.7]} 66. Kg1 {[%clk 0:00:40.1]}
66... g3 {[%clk 0:00:14.8]} 67. Rb1 {[%clk 0:00:39.2]} 67... h2+ {[%clk
0:00:14.1]} 68. Kh1 {[%clk 0:00:38.8]} 68... Kf4 {[%clk 0:00:14.4]} 69. Rb4+
{[%clk 0:00:35.6]} 69... Ke3 {[%clk 0:00:14.7]} 70. Re4+ {[%clk 0:00:35.5]}
70... Kf2 {[%clk 0:00:14.3]} 71. Re2+ {[%clk 0:00:35.5]} 71... Kxe2 {[%clk
0:00:14.2]} 0-1

[Event "*** Titled Tuesday Blitz"]
[Site "Chess.com"]
[Date "2020.04.07"]
[Round "2"]
[White "Kobalia"]
[Black "MITerryble"]
[Result "1-0"]
[WhiteElo "2609"]
[BlackElo "2891"]
[TimeControl "180+1"]
[EndTime "13:20:26 PDT"]
[Termination "Kobalia won on time"]

1. e4 {[%clk 0:03:00.9]} 1... e6 {[%clk 0:02:58.9]} 2. d3 {[%clk 0:02:59.8]}
2... d5 {[%clk 0:02:59.2]} 3. Nd2 {[%clk 0:03:00.7]} 3... Nf6 {[%clk 0:02:59.7]}
4. Ngf3 {[%clk 0:03:01.1]} 4... b6 {[%clk 0:03:00.2]} 5. c3 {[%clk 0:02:59.6]}
5... c5 {[%clk 0:03:00.2]} 6. e5 {[%clk 0:02:57.6]} 6... Nfd7 {[%clk 0:03:00]}
7. d4 {[%clk 0:02:58.5]} 7... Ba6 {[%clk 0:02:59.5]} 8. Bxa6 {[%clk 0:02:57.5]}
8... Nxa6 {[%clk 0:03:00.4]} 9. Nf1 {[%clk 0:02:53.5]} 9... Be7 {[%clk
0:03:00.4]} 10. Ng3 {[%clk 0:02:53.1]} 10... cxd4 {[%clk 0:02:48.3]} 11. cxd4
{[%clk 0:02:52.3]} 11... Rc8 {[%clk 0:02:43.8]} 12. a3 {[%clk 0:02:51.8]} 12...
Qc7 {[%clk 0:02:43.9]} 13. Bd2 {[%clk 0:02:46.1]} 13... O-O {[%clk 0:02:35.8]}
14. O-O {[%clk 0:02:37]} 14... b5 {[%clk 0:02:30.3]} 15. Ng5 {[%clk 0:02:19.4]}
15... Qc2 {[%clk 0:02:27.7]} 16. Nf3 {[%clk 0:01:29.7]} 16... Qxb2 {[%clk
0:02:16.3]} 17. Qe2 {[%clk 0:01:29.2]} 17... Nc7 {[%clk 0:02:02.1]} 18. a4
{[%clk 0:01:28.9]} 18... bxa4 {[%clk 0:01:55.3]} 19. Rxa4 {[%clk 0:01:27.5]}
19... a6 {[%clk 0:01:51.8]} 20. Rfa1 {[%clk 0:01:25.6]} 20... Nb6 {[%clk
0:01:42.1]} 21. R4a2 {[%clk 0:01:22.7]} 21... Qb5 {[%clk 0:01:41.8]} 22. Qe1
{[%clk 0:01:19.4]} 22... Nc4 {[%clk 0:01:40.9]} 23. Bg5 {[%clk 0:01:17.6]} 23...
Qd7 {[%clk 0:01:23.1]} 24. Qd1 {[%clk 0:01:08.3]} 24... Rb8 {[%clk 0:01:17.1]}
25. Nh5 {[%clk 0:01:07.1]} 25... Rfc8 {[%clk 0:01:07.2]} 26. Qc1 {[%clk
0:01:00.2]} 26... Ne8 {[%clk 0:01:04.9]} 27. Qf4 {[%clk 0:00:56.2]} 27... a5
{[%clk 0:01:01.8]} 28. h4 {[%clk 0:00:42.3]} 28... Bf8 {[%clk 0:00:53.2]} 29.
Nh2 {[%clk 0:00:37.5]} 29... Qc7 {[%clk 0:00:36.1]} 30. Ng4 {[%clk 0:00:36.5]}
30... f5 {[%clk 0:00:35]} 31. exf6 {[%clk 0:00:35.4]} 31... Qxf4 {[%clk
0:00:34.6]} 32. Bxf4 {[%clk 0:00:34]} 32... g6 {[%clk 0:00:21.2]} 33. Ng7 {[%clk
0:00:23.4]} 33... Rb6 {[%clk 0:00:20.4]} 34. Nxe8 {[%clk 0:00:21.3]} 34... Rxe8
{[%clk 0:00:21.3]} 35. Ne5 {[%clk 0:00:21.3]} 35... Nxe5 {[%clk 0:00:16.9]} 36.
Bxe5 {[%clk 0:00:16.5]} 36... Bb4 {[%clk 0:00:17.4]} 37. Rc2 {[%clk 0:00:16.1]}
37... Rb7 {[%clk 0:00:14.3]} 38. Rac1 {[%clk 0:00:15.5]} 38... Rf8 {[%clk
0:00:13.3]} 39. Rc7 {[%clk 0:00:15]} 39... Rxc7 {[%clk 0:00:13.6]} 40. Rxc7
{[%clk 0:00:13.9]} 40... Rf7 {[%clk 0:00:14.5]} 41. Rc6 {[%clk 0:00:13.8]} 41...
Rd7 {[%clk 0:00:05.5]} 42. Ra6 {[%clk 0:00:12.9]} 42... Kf7 {[%clk 0:00:05.1]}
43. g4 {[%clk 0:00:13.1]} 43... h6 {[%clk 0:00:04.2]} 44. g5 {[%clk 0:00:13.2]}
44... hxg5 {[%clk 0:00:05.1]} 45. hxg5 {[%clk 0:00:13.3]} 45... Rb7 {[%clk
0:00:04.9]} 46. Kg2 {[%clk 0:00:13.1]} 46... Rd7 {[%clk 0:00:04.6]} 47. Kf3
{[%clk 0:00:12.8]} 47... Rb7 {[%clk 0:00:04.9]} 48. Ke2 {[%clk 0:00:12.6]} 48...
Rd7 {[%clk 0:00:04.8]} 49. Kd3 {[%clk 0:00:12.7]} 49... Rb7 {[%clk 0:00:05.5]}
50. Kc2 {[%clk 0:00:12.8]} 50... Rd7 {[%clk 0:00:05.3]} 51. Kb3 {[%clk
0:00:12.8]} 51... Rb7 {[%clk 0:00:05.8]} 52. Ka4 {[%clk 0:00:12.8]} 52... Bf8
{[%clk 0:00:01.2]} 53. Ra8 {[%clk 0:00:11.2]} 53... Rb4+ {[%clk 0:00:01.2]} 54.
Kxa5 {[%clk 0:00:10.1]} 54... Rb7 {[%clk 0:00:02.1]} 55. f4 {[%clk 0:00:08.3]}
55... Rd7 {[%clk 0:00:02.4]} 56. Kb6 {[%clk 0:00:07.3]} 56... Bb4 {[%clk
0:00:02.1]} 57. Kc6 {[%clk 0:00:06.6]} 1-0

[Event "*** Titled Tuesday Blitz"]
[Site "Chess.com"]
[Date "2020.04.07"]
[Round "2"]
[White "SketchyMoves"]
[Black "platy3"]
[Result "1-0"]
[WhiteElo "2612"]
[BlackElo "2804"]
[TimeControl "180+1"]
[EndTime "13:20:26 PDT"]
[Termination "SketchyMoves won by resignation"]

1. e4 {[%clk 0:02:38.3]} 1... c5 {[%clk 0:02:59]} 2. Nf3 {[%clk 0:02:37.9]} 2...
Nc6 {[%clk 0:02:59.3]} 3. Bb5 {[%clk 0:02:37.6]} 3... g6 {[%clk 0:02:58.9]} 4.
Bxc6 {[%clk 0:02:37]} 4... dxc6 {[%clk 0:02:58.6]} 5. d3 {[%clk 0:02:37.4]} 5...
Bg7 {[%clk 0:02:58.7]} 6. h3 {[%clk 0:02:37.8]} 6... e5 {[%clk 0:02:58.8]} 7. a4
{[%clk 0:02:36.1]} 7... Qe7 {[%clk 0:02:58]} 8. a5 {[%clk 0:02:31.3]} 8... Nf6
{[%clk 0:02:56.5]} 9. Be3 {[%clk 0:02:30.2]} 9... Nd7 {[%clk 0:02:56.3]} 10. Nc3
{[%clk 0:02:26.5]} 10... Nf8 {[%clk 0:02:56.3]} 11. Na4 {[%clk 0:02:26.7]} 11...
Ne6 {[%clk 0:02:56]} 12. Nd2 {[%clk 0:02:22]} 12... Rb8 {[%clk 0:02:52.4]} 13.
Nc4 {[%clk 0:02:06]} 13... O-O {[%clk 0:02:13.8]} 14. b4 {[%clk 0:02:06.1]}
14... cxb4 {[%clk 0:02:09]} 15. Bxa7 {[%clk 0:02:05.9]} 15... Ra8 {[%clk
0:02:09.3]} 16. Be3 {[%clk 0:01:52.6]} 16... f5 {[%clk 0:02:09.2]} 17. Nab6
{[%clk 0:01:47.1]} 17... Ra6 {[%clk 0:02:08.5]} 18. Nxc8 {[%clk 0:01:45.1]}
18... Rxc8 {[%clk 0:02:08.3]} 19. O-O {[%clk 0:01:40.1]} 19... Rd8 {[%clk
0:02:03]} 20. Qb1 {[%clk 0:01:38.1]} 20... f4 {[%clk 0:01:52.3]} 21. Bb6 {[%clk
0:01:38]} 21... Rd7 {[%clk 0:01:43.2]} 22. f3 {[%clk 0:01:32.7]} 22... g5 {[%clk
0:01:37.4]} 23. Bf2 {[%clk 0:01:15.3]} 23... Nd4 {[%clk 0:01:16.6]} 24. Bxd4
{[%clk 0:01:09.8]} 24... Rxd4 {[%clk 0:01:16.4]} 25. Rd1 {[%clk 0:01:03.2]}
25... Bf8 {[%clk 0:01:15.3]} 26. Qb3 {[%clk 0:01:00.6]} 26... Kg7 {[%clk
0:01:13.5]} 27. Rab1 {[%clk 0:00:54.9]} 27... Qe6 {[%clk 0:01:12.7]} 28. c3
{[%clk 0:00:51.6]} 28... bxc3 {[%clk 0:00:50]} 29. Qxb7+ {[%clk 0:00:41.8]}
29... Rd7 {[%clk 0:00:50]} 30. Qxa6 {[%clk 0:00:28.2]} 30... c2 {[%clk
0:00:50.3]} 31. Qc8 {[%clk 0:00:20.7]} 31... Bc5+ {[%clk 0:00:33.9]} 32. Kh1
{[%clk 0:00:20.4]} 32... Bd4 {[%clk 0:00:11.2]} 33. Nb6 {[%clk 0:00:18.1]} 33...
Re7 {[%clk 0:00:05.5]} 34. Qxe6 {[%clk 0:00:17.2]} 34... Rxe6 {[%clk 0:00:06.4]}
35. Nc4 {[%clk 0:00:16.8]} 35... Re7 {[%clk 0:00:04.6]} 36. Rdc1 {[%clk
0:00:16.8]} 36... cxb1=Q {[%clk 0:00:04.6]} 37. Rxb1 {[%clk 0:00:17.7]} 37...
Ra7 {[%clk 0:00:04.8]} 38. Rb8 {[%clk 0:00:14.1]} 38... Kf7 {[%clk 0:00:04.6]}
39. Kh2 {[%clk 0:00:10.4]} 39... Ke6 {[%clk 0:00:03.6]} 40. h4 {[%clk
0:00:10.5]} 40... gxh4 {[%clk 0:00:03.1]} 41. Kh3 {[%clk 0:00:11.1]} 41... Bc3
{[%clk 0:00:01.3]} 42. Rb6 {[%clk 0:00:07.5]} 42... Bxa5 {[%clk 0:00:01.1]} 43.
Rxc6+ {[%clk 0:00:06.9]} 43... Ke7 {[%clk 0:00:01.8]} 44. Nxe5 {[%clk
0:00:06.6]} 44... Bc7 {[%clk 0:00:02.6]} 45. Nc4 {[%clk 0:00:03.7]} 45... Kd7
{[%clk 0:00:02.6]} 46. Rh6 {[%clk 0:00:04.2]} 46... Ra2 {[%clk 0:00:03.1]} 47.
Rxh7+ {[%clk 0:00:04.3]} 47... Kc6 {[%clk 0:00:03.8]} 48. Rxh4 {[%clk
0:00:04.5]} 48... Kc5 {[%clk 0:00:04.5]} 49. Rh5+ {[%clk 0:00:04.6]} 49... Kd4
{[%clk 0:00:04.5]} 50. Rd5+ {[%clk 0:00:05.5]} 50... Kc3 {[%clk 0:00:05]} 51. g3
{[%clk 0:00:04.6]} 51... fxg3 {[%clk 0:00:05.1]} 52. Ne3 {[%clk 0:00:02.8]}
52... Rh2+ {[%clk 0:00:05.6]} 53. Kg4 {[%clk 0:00:03.4]} 53... Re2 {[%clk
0:00:03]} 54. Rc5+ {[%clk 0:00:03.5]} 54... Kxd3 {[%clk 0:00:02.9]} 55. Rxc7
{[%clk 0:00:03.8]} 55... Kxe3 {[%clk 0:00:02.2]} 56. Kxg3 {[%clk 0:00:04.1]}
56... Re1 {[%clk 0:00:02.9]} 57. Rc3+ {[%clk 0:00:03.9]} 57... Kd4 {[%clk
0:00:03.5]} 58. Ra3 {[%clk 0:00:04.7]} 58... Rg1+ {[%clk 0:00:03.3]} 59. Kf4
{[%clk 0:00:04.5]} 59... Rh1 {[%clk 0:00:03.9]} 60. Ra4+ {[%clk 0:00:04.7]}
60... Kc5 {[%clk 0:00:04.5]} 61. Ra8 {[%clk 0:00:04.3]} 61... Kd4 {[%clk
0:00:04.8]} 62. Rd8+ {[%clk 0:00:03.9]} 62... Kc5 {[%clk 0:00:05.5]} 63. Rd2
{[%clk 0:00:04.5]} 63... Rh4+ {[%clk 0:00:05.8]} 64. Kg5 {[%clk 0:00:04.9]}
64... Rh3 {[%clk 0:00:06.1]} 65. Kg4 {[%clk 0:00:04.8]} 65... Rh1 {[%clk
0:00:06]} 66. f4 {[%clk 0:00:05.1]} 66... Re1 {[%clk 0:00:06.4]} 67. Kf5 {[%clk
0:00:05.5]} 1-0

[Event "*** Titled Tuesday Blitz"]
[Site "Chess.com"]
[Date "2020.04.07"]
[Round "2"]
[White "ZWISCHENZUGGED"]
[Black "THORK"]
[Result "0-1"]
[WhiteElo "2541"]
[BlackElo "2324"]
[TimeControl "180+1"]
[EndTime "13:20:28 PDT"]
[Termination "THORK won by resignation"]

1. d4 {[%clk 0:03:00.9]} 1... d5 {[%clk 0:02:59.4]} 2. c4 {[%clk 0:03:01.3]}
2... Bf5 {[%clk 0:02:59.8]} 3. cxd5 {[%clk 0:03:01.1]} 3... Bxb1 {[%clk
0:02:59.1]} 4. Qa4+ {[%clk 0:03:00.9]} 4... c6 {[%clk 0:02:59.6]} 5. Rxb1 {[%clk
0:03:01]} 5... Qxd5 {[%clk 0:02:58.9]} 6. Nf3 {[%clk 0:02:59.3]} 6... Nf6 {[%clk
0:02:59]} 7. g3 {[%clk 0:02:54.4]} 7... Nbd7 {[%clk 0:02:45.4]} 8. Bg2 {[%clk
0:02:54]} 8... Nb6 {[%clk 0:02:32.7]} 9. Qc2 {[%clk 0:02:46.8]} 9... e6 {[%clk
0:02:30.2]} 10. O-O {[%clk 0:02:45.5]} 10... Qf5 {[%clk 0:02:30.4]} 11. Qxf5
{[%clk 0:02:44.3]} 11... exf5 {[%clk 0:02:31.3]} 12. b3 {[%clk 0:02:36.9]} 12...
g6 {[%clk 0:02:30]} 13. Bb2 {[%clk 0:02:36.4]} 13... Nfd5 {[%clk 0:02:29]} 14.
Rfd1 {[%clk 0:02:32.6]} 14... O-O-O {[%clk 0:02:25.7]} 15. e3 {[%clk 0:02:31.3]}
15... f6 {[%clk 0:02:24.5]} 16. Ne1 {[%clk 0:02:25]} 16... Bg7 {[%clk
0:02:20.5]} 17. Nd3 {[%clk 0:02:24.1]} 17... Rhe8 {[%clk 0:02:19.7]} 18. a4
{[%clk 0:02:07]} 18... Ne7 {[%clk 0:02:14.4]} 19. Ba3 {[%clk 0:02:04.1]} 19...
Bf8 {[%clk 0:02:11.3]} 20. Rbc1 {[%clk 0:02:00.7]} 20... Kb8 {[%clk 0:02:07.1]}
21. a5 {[%clk 0:01:54.9]} 21... Nbd5 {[%clk 0:02:02.4]} 22. Nc5 {[%clk
0:01:39.2]} 22... a6 {[%clk 0:01:59.6]} 23. Ne6 {[%clk 0:01:33.9]} 23... Rd7
{[%clk 0:01:59.3]} 24. h4 {[%clk 0:01:20.9]} 24... Bh6 {[%clk 0:01:52.9]} 25.
Nc5 {[%clk 0:01:02.7]} 25... Rdd8 {[%clk 0:01:52.6]} 26. Re1 {[%clk 0:00:56.9]}
26... Nc8 {[%clk 0:01:51.5]} 27. Bf1 {[%clk 0:00:55.2]} 27... Nd6 {[%clk
0:01:49.6]} 28. Kg2 {[%clk 0:00:46.8]} 28... Ka7 {[%clk 0:01:45.1]} 29. Nd3
{[%clk 0:00:43.7]} 29... Ne4 {[%clk 0:01:37.9]} 30. Bc5+ {[%clk 0:00:38.9]}
30... Kb8 {[%clk 0:01:37.3]} 31. Nf4 {[%clk 0:00:22.5]} 31... Bxf4 {[%clk
0:01:35.3]} 32. gxf4 {[%clk 0:00:23.1]} 32... h5 {[%clk 0:01:30]} 33. Ba3 {[%clk
0:00:18.2]} 33... g5 {[%clk 0:01:26.7]} 34. fxg5 {[%clk 0:00:18.3]} 34... fxg5
{[%clk 0:01:27.1]} 35. hxg5 {[%clk 0:00:19.2]} 35... Nxg5 {[%clk 0:01:27.4]} 36.
Bd3 {[%clk 0:00:18.8]} 36... Ne4 {[%clk 0:01:23.3]} 37. Rg1 {[%clk 0:00:11.9]}
37... h4 {[%clk 0:01:16.1]} 38. Bc4 {[%clk 0:00:08.9]} 38... h3+ {[%clk
0:01:01.9]} 39. Kf3 {[%clk 0:00:09.2]} 39... h2 {[%clk 0:00:52.3]} 40. Rh1
{[%clk 0:00:09.4]} 40... Rh8 {[%clk 0:00:52.1]} 41. Bc5 {[%clk 0:00:05.8]} 41...
Rdg8 {[%clk 0:00:47.2]} 42. Bxd5 {[%clk 0:00:03.6]} 42... cxd5 {[%clk
0:00:48.1]} 43. Bb6 {[%clk 0:00:04.2]} 43... Rh3+ {[%clk 0:00:46.7]} 44. Ke2
{[%clk 0:00:03.5]} 44... Rg2 {[%clk 0:00:46]} 45. Rcf1 {[%clk 0:00:04.2]} 45...
Ng3+ {[%clk 0:00:44.3]} 46. Ke1 {[%clk 0:00:03.8]} 46... Nxf1 {[%clk 0:00:41.5]}
47. Kxf1 {[%clk 0:00:03.7]} 47... Rg1+ {[%clk 0:00:41.9]} 48. Rxg1 {[%clk
0:00:03.5]} 48... hxg1=Q+ {[%clk 0:00:41.8]} 49. Kxg1 {[%clk 0:00:04.4]} 49...
Rh6 {[%clk 0:00:41.1]} 50. Bc5 {[%clk 0:00:05.1]} 50... Kc7 {[%clk 0:00:40.6]}
51. b4 {[%clk 0:00:05.7]} 51... Kc6 {[%clk 0:00:40.8]} 52. Kg2 {[%clk
0:00:06.3]} 52... Rg6+ {[%clk 0:00:40.1]} 53. Kf3 {[%clk 0:00:07.2]} 53... Rg4
{[%clk 0:00:40.4]} 54. Ke2 {[%clk 0:00:07.4]} 54... Kb5 {[%clk 0:00:40.5]} 55.
Kf3 {[%clk 0:00:07.3]} 55... Kc4 {[%clk 0:00:40.6]} 56. Ke2 {[%clk 0:00:07.6]}
56... Kc3 {[%clk 0:00:40.8]} 57. Kf3 {[%clk 0:00:08.1]} 57... Kd3 {[%clk
0:00:41]} 58. Bd6 {[%clk 0:00:08.6]} 58... Rg6 {[%clk 0:00:39.1]} 59. Bc5 {[%clk
0:00:08.9]} 59... Rg7 {[%clk 0:00:37]} 60. Bd6 {[%clk 0:00:08.8]} 60... Rf7
{[%clk 0:00:35.7]} 61. Bc5 {[%clk 0:00:09.2]} 61... Kc4 {[%clk 0:00:35.5]} 62.
Bd6 {[%clk 0:00:09.5]} 62... Rd7 {[%clk 0:00:31.7]} 63. Bc5 {[%clk 0:00:09.6]}
63... Kd3 {[%clk 0:00:31.1]} 64. Kf4 {[%clk 0:00:09.6]} 64... Ke2 {[%clk
0:00:30]} 65. f3 {[%clk 0:00:10.1]} 65... Kd3 {[%clk 0:00:30.1]} 66. Bb6 {[%clk
0:00:09.1]} 66... Re7 {[%clk 0:00:29]} 67. Bc5 {[%clk 0:00:09.4]} 67... Rxe3
{[%clk 0:00:28.8]} 68. Kxf5 {[%clk 0:00:10.3]} 68... Rxf3+ {[%clk 0:00:28.8]}
69. Ke5 {[%clk 0:00:11.2]} 69... Kc4 {[%clk 0:00:29.1]} 70. Kd6 {[%clk
0:00:11.4]} 70... Rf7 {[%clk 0:00:28.8]} 71. Ke6 {[%clk 0:00:11.2]} 71... Rh7
{[%clk 0:00:28.6]} 72. Kd6 {[%clk 0:00:11.5]} 72... Kb5 {[%clk 0:00:27.1]} 73.
Kxd5 {[%clk 0:00:11.4]} 73... Rd7+ {[%clk 0:00:27.6]} 74. Ke4 {[%clk 0:00:11.7]}
74... Kc4 {[%clk 0:00:27.6]} 75. Ke5 {[%clk 0:00:12.4]} 75... Rd5+ {[%clk
0:00:27.4]} 76. Ke6 {[%clk 0:00:12.4]} 76... Rxd4 {[%clk 0:00:27]} 77. Bxd4
{[%clk 0:00:12.7]} 77... Kxd4 {[%clk 0:00:27.5]} 78. Kd6 {[%clk 0:00:13.4]}
78... Kc4 {[%clk 0:00:28.4]} 79. Kc7 {[%clk 0:00:14]} 79... Kxb4 {[%clk
0:00:28.8]} 80. Kb6 {[%clk 0:00:09.2]} 80... Ka4 {[%clk 0:00:28.8]} 81. Kxb7
{[%clk 0:00:09.5]} 81... Kxa5 {[%clk 0:00:29.7]} 82. Kc6 {[%clk 0:00:10.4]}
82... Kb4 {[%clk 0:00:30]} 0-1